[Event "Titled Tuesday Blitz May 16 Early 2023"]
[White "Roberz12"]
[Black "Reprintsev, Alexander"]
[BlackFideId "14100541"]
[WhiteElo "2344"]
[BlackElo "2218"]
[Result "1-0"]
[Round "05"]
[TimeControl "180+2"]
[Date "2023.05.16"]
[WhiteClock "0:00:58"]
[BlackClock "0:00:10"]

1. e4 {[%clk 0:03:00]}  d5 {[%clk 0:02:08]} 2. exd5 {[%clk 0:03:00]}  Qxd5 {[%clk 0:02:07]} 3. Nf3 {[%clk 0:02:57]}  Bg4 {[%clk 0:02:06]} 4. Be2 {[%clk 0:02:56]}  Nc6 {[%clk 0:02:06]} 5. Nc3 {[%clk 0:02:56]}  Qd7 {[%clk 0:02:05]} 6. h3 {[%clk 0:02:55]}  Bf5 {[%clk 0:02:05]} 7. d4 {[%clk 0:02:53]}  e6 {[%clk 0:02:02]} 8. Be3 {[%clk 0:02:53]}  Bb4 {[%clk 0:02:01]} 9. Qd2 {[%clk 0:02:52]}  Nf6 {[%clk 0:02:00]} 10. Bd3 {[%clk 0:02:50]}  Ne4 {[%clk 0:01:57]} 11. Bxe4 {[%clk 0:02:49]}  Bxe4 {[%clk 0:01:57]} 12. a3 {[%clk 0:02:48]}  Bxf3 {[%clk 0:01:52]} 13. gxf3 {[%clk 0:02:44]}  Ba5 {[%clk 0:01:49]} 14. Rg1 {[%clk 0:02:41]}  f6 {[%clk 0:01:45]} 15. b4 {[%clk 0:02:34]}  Bb6 {[%clk 0:01:44]} 16. O-O-O {[%clk 0:02:34]}  O-O-O {[%clk 0:01:43]} 17. Ne4 {[%clk 0:02:32]}  Bxd4 {[%clk 0:01:34]} 18. Qe2 {[%clk 0:02:23]}  Bxe3+ {[%clk 0:01:33]} 19. Qxe3 {[%clk 0:02:23]}  Qf7 {[%clk 0:01:25]} 20. Nc5 {[%clk 0:02:23]}  Rhe8 {[%clk 0:01:23]} 21. Qe2 {[%clk 0:02:21]}  a6 {[%clk 0:01:19]} 22. Nxa6 {[%clk 0:02:18]}  Nd4 {[%clk 0:01:14]} 23. Qe4 {[%clk 0:02:07]}  f5 {[%clk 0:01:10]} 24. Qe5 {[%clk 0:02:04]}  Rd5 {[%clk 0:01:07]} 25. Qe3 {[%clk 0:01:35]}  e5 {[%clk 0:00:38]} 26. Nc5 {[%clk 0:01:33]}  b6 {[%clk 0:00:37]} 27. Nd3 {[%clk 0:01:24]}  g6 {[%clk 0:00:32]} 28. f4 {[%clk 0:01:20]}  e4 {[%clk 0:00:24]} 29. Ne5 {[%clk 0:01:18]}  Rexe5 {[%clk 0:00:20]} 30. fxe5 {[%clk 0:01:17]}  c5 {[%clk 0:00:20]} 31. c3 {[%clk 0:01:11]}  Nb3+ {[%clk 0:00:19]} 32. Kb2 {[%clk 0:01:11]}  Rxe5 {[%clk 0:00:15]} 33. Qg5 {[%clk 0:00:59]}  Qe7 {[%clk 0:00:12]} 34. Qxe7 {[%clk 0:00:58]}  Rxe7 {[%clk 0:00:10]} 35. Kxb3 {[%clk 0:00:58]} 1-0


[Site "https://www.chess.com"]

[Event "Titled Tuesday Blitz May 16 Early 2023"]
[White "Karas, Marek"]
[Black "Llanos, Guillermo"]
[WhiteFideId "14928558"]
[BlackFideId "100358"]
[WhiteElo "2233"]
[BlackElo "2225"]
[Result "0-1"]
[Round "05"]
[TimeControl "180+2"]
[Date "2023.05.16"]
[WhiteClock "0:00:00"]
[BlackClock "0:00:44"]

1. h4 {[%clk 0:02:58]}  d5 {[%clk 0:02:58]} 2. d4 {[%clk 0:02:58]}  c5 {[%clk 0:02:57]} 3. e4 {[%clk 0:02:55]}  dxe4 {[%clk 0:02:55]} 4. d5 {[%clk 0:02:54]}  Nf6 {[%clk 0:02:55]} 5. Nc3 {[%clk 0:02:53]}  a6 {[%clk 0:02:49]} 6. Bg5 {[%clk 0:02:47]}  b5 {[%clk 0:02:44]} 7. Bxf6 {[%clk 0:02:42]}  exf6 {[%clk 0:02:40]} 8. Nxe4 {[%clk 0:02:43]}  f5 {[%clk 0:02:31]} 9. Ng5 {[%clk 0:02:40]}  Bd6 {[%clk 0:02:25]} 10. N1f3 {[%clk 0:02:28]}  h6 {[%clk 0:02:19]} 11. Nh3 {[%clk 0:02:09]}  O-O {[%clk 0:02:13]} 12. Be2 {[%clk 0:02:03]}  Bb7 {[%clk 0:02:12]} 13. Qd2 {[%clk 0:02:02]}  Nd7 {[%clk 0:02:03]} 14. O-O-O {[%clk 0:01:50]}  Nf6 {[%clk 0:02:03]} 15. Nf4 {[%clk 0:01:39]}  Ne4 {[%clk 0:01:59]} 16. Qe3 {[%clk 0:01:39]}  Bxf4 {[%clk 0:01:55]} 17. Qxf4 {[%clk 0:01:39]}  Nxf2 {[%clk 0:01:56]} 18. Qxf5 {[%clk 0:01:36]}  Nxh1 {[%clk 0:01:55]} 19. Rxh1 {[%clk 0:01:28]}  Qxd5 {[%clk 0:01:54]} 20. Qf4 {[%clk 0:01:28]}  Qe4 {[%clk 0:01:47]} 21. Qd2 {[%clk 0:01:25]}  Rad8 {[%clk 0:01:46]} 22. Bd3 {[%clk 0:01:25]}  Qd5 {[%clk 0:01:38]} 23. Qc3 {[%clk 0:01:03]}  Qxa2 {[%clk 0:01:28]} 24. b3 {[%clk 0:01:03]}  Qa3+ {[%clk 0:01:25]} 25. Kb1 {[%clk 0:01:03]}  c4 {[%clk 0:01:23]} 26. Bf5 {[%clk 0:01:00]}  cxb3 {[%clk 0:01:19]} 27. cxb3 {[%clk 0:00:59]}  Bd5 {[%clk 0:01:17]} 28. Bc2 {[%clk 0:00:58]}  Rc8 {[%clk 0:01:15]} 29. Qd3 {[%clk 0:00:57]}  Rxc2 {[%clk 0:01:13]} 30. Qxc2 {[%clk 0:00:52]}  Bxb3 {[%clk 0:01:12]} 31. Qb2 {[%clk 0:00:53]}  Qxb2+ {[%clk 0:01:11]} 32. Kxb2 {[%clk 0:00:53]}  Bd5 {[%clk 0:01:11]} 33. Ne1 {[%clk 0:00:47]}  Be4 {[%clk 0:01:09]} 34. Rh3 {[%clk 0:00:46]}  f5 {[%clk 0:01:07]} 35. Rc3 {[%clk 0:00:41]}  b4 {[%clk 0:01:02]} 36. Rc4 {[%clk 0:00:39]}  a5 {[%clk 0:00:59]} 37. g4 {[%clk 0:00:39]}  g6 {[%clk 0:00:58]} 38. h5 {[%clk 0:00:36]}  gxh5 {[%clk 0:00:56]} 39. gxf5 {[%clk 0:00:34]}  Bxf5 {[%clk 0:00:56]} 40. Ng2 {[%clk 0:00:29]}  Rc8 {[%clk 0:00:54]} 41. Rxc8+ {[%clk 0:00:25]}  Bxc8 {[%clk 0:00:54]} 42. Kb3 {[%clk 0:00:24]}  Bd7 {[%clk 0:00:51]} 43. Kc4 {[%clk 0:00:21]}  Kf7 {[%clk 0:00:49]} 44. Nf4 {[%clk 0:00:19]}  h4 {[%clk 0:00:47]} 45. Kd4 {[%clk 0:00:20]}  h3 {[%clk 0:00:47]} 46. Nd3 {[%clk 0:00:14]}  h2 {[%clk 0:00:46]} 47. Ne5+ {[%clk 0:00:00]}  Ke6 {[%clk 0:00:44]} 0-1


[Site "https://www.chess.com"]

[Event "Titled Tuesday Blitz May 16 Early 2023"]
[White "Dishman, Stephen"]
[Black "cristianserban1"]
[WhiteFideId "403024"]
[WhiteElo "2204"]
[BlackElo "2510"]
[Result "0-1"]
[Round "05"]
[TimeControl "180+2"]
[Date "2023.05.16"]
[WhiteClock "0:00:00"]
[BlackClock "0:00:04"]

1. c4 {[%clk 0:03:00]}  e6 {[%clk 0:02:59]} 2. g3 {[%clk 0:03:00]}  d5 {[%clk 0:02:59]} 3. Nf3 {[%clk 0:03:00]}  c6 {[%clk 0:02:58]} 4. Qc2 {[%clk 0:02:59]}  Nf6 {[%clk 0:02:58]} 5. d4 {[%clk 0:02:59]}  Bb4+ {[%clk 0:02:57]} 6. Bd2 {[%clk 0:02:58]}  Be7 {[%clk 0:02:57]} 7. Bg2 {[%clk 0:02:58]}  O-O {[%clk 0:02:58]} 8. O-O {[%clk 0:02:58]}  b6 {[%clk 0:02:58]} 9. Bf4 {[%clk 0:02:56]}  Bb7 {[%clk 0:02:56]} 10. Rd1 {[%clk 0:02:49]}  Nbd7 {[%clk 0:02:56]} 11. Ne5 {[%clk 0:02:49]}  Nh5 {[%clk 0:02:54]} 12. Bc1 {[%clk 0:02:47]}  Nhf6 {[%clk 0:02:43]} 13. Bf4 {[%clk 0:02:46]}  Nh5 {[%clk 0:02:43]} 14. Bc1 {[%clk 0:02:46]}  Nhf6 {[%clk 0:02:43]} 15. Nc3 {[%clk 0:02:45]}  Rc8 {[%clk 0:02:31]} 16. Qa4 {[%clk 0:02:27]}  a5 {[%clk 0:02:31]} 17. cxd5 {[%clk 0:02:20]}  cxd5 {[%clk 0:02:31]} 18. Bf4 {[%clk 0:02:15]}  Nxe5 {[%clk 0:01:37]} 19. Bxe5 {[%clk 0:02:14]}  Nd7 {[%clk 0:01:27]} 20. Bf4 {[%clk 0:02:10]}  Ba6 {[%clk 0:01:24]} 21. Rac1 {[%clk 0:02:03]}  Bb4 {[%clk 0:01:21]} 22. Nb5 {[%clk 0:01:58]}  g5 {[%clk 0:01:00]} 23. Be3 {[%clk 0:01:48]}  Nb8 {[%clk 0:00:57]} 24. Rxc8 {[%clk 0:01:36]}  Qxc8 {[%clk 0:00:58]} 25. Rc1 {[%clk 0:01:29]}  Qd7 {[%clk 0:00:56]} 26. Nc3 {[%clk 0:01:27]}  h6 {[%clk 0:00:47]} 27. Bf3 {[%clk 0:01:17]}  Rc8 {[%clk 0:00:43]} 28. Qxd7 {[%clk 0:01:11]}  Nxd7 {[%clk 0:00:43]} 29. a3 {[%clk 0:01:09]}  Bxc3 {[%clk 0:00:40]} 30. Rxc3 {[%clk 0:01:07]}  Rxc3 {[%clk 0:00:36]} 31. bxc3 {[%clk 0:01:07]}  Nf6 {[%clk 0:00:31]} 32. Kf1 {[%clk 0:00:59]}  Ne8 {[%clk 0:00:31]} 33. h4 {[%clk 0:00:56]}  f6 {[%clk 0:00:29]} 34. hxg5 {[%clk 0:00:55]}  hxg5 {[%clk 0:00:30]} 35. Bg4 {[%clk 0:00:50]}  Nc7 {[%clk 0:00:30]} 36. f4 {[%clk 0:00:48]}  f5 {[%clk 0:00:27]} 37. Bh5 {[%clk 0:00:47]}  gxf4 {[%clk 0:00:25]} 38. Bxf4 {[%clk 0:00:39]}  Nb5 {[%clk 0:00:26]} 39. Bd2 {[%clk 0:00:23]}  Nxa3 {[%clk 0:00:25]} 40. g4 {[%clk 0:00:19]}  Nb1 {[%clk 0:00:19]} 41. Ke1 {[%clk 0:00:16]}  a4 {[%clk 0:00:17]} 42. Kd1 {[%clk 0:00:14]}  a3 {[%clk 0:00:16]} 43. Bc1 {[%clk 0:00:14]}  Nxc3+ {[%clk 0:00:12]} 44. Kc2 {[%clk 0:00:14]}  Nxe2 {[%clk 0:00:11]} 45. Bxa3 {[%clk 0:00:13]}  Nxd4+ {[%clk 0:00:11]} 46. Kd2 {[%clk 0:00:12]}  f4 {[%clk 0:00:10]} 47. Bb2 {[%clk 0:00:10]}  Nf3+ {[%clk 0:00:09]} 48. Kd1 {[%clk 0:00:10]}  e5 {[%clk 0:00:08]} 49. Bg6 {[%clk 0:00:08]}  Bc4 {[%clk 0:00:05]} 50. Bf5 {[%clk 0:00:07]}  d4 {[%clk 0:00:03]} 51. Ba3 {[%clk 0:00:05]}  b5 {[%clk 0:00:04]} 52. Bd6 {[%clk 0:00:04]}  Kf7 {[%clk 0:00:04]} 53. Be4 {[%clk 0:00:04]}  Ng5 {[%clk 0:00:02]} 54. Bf5 {[%clk 0:00:04]}  e4 {[%clk 0:00:02]} 55. Bxf4 {[%clk 0:00:02]}  Kf6 {[%clk 0:00:03]} 56. Bxg5+ {[%clk 0:00:02]}  Kxg5 {[%clk 0:00:03]} 57. Bxe4 {[%clk 0:00:01]}  Kxg4 {[%clk 0:00:04]} 58. Kd2 {[%clk 0:00:00]}  Kf4 {[%clk 0:00:04]} 0-1


[Site "https://www.chess.com"]

[Event "Titled Tuesday Blitz May 16 Early 2023"]
[White "Buchenau, Frank"]
[Black "KorolDimitriy75"]
[WhiteFideId "4604350"]
[WhiteElo "2157"]
[BlackElo "2508"]
[Result "1-0"]
[Round "05"]
[TimeControl "180+2"]
[Date "2023.05.16"]
[WhiteClock "0:00:58"]
[BlackClock "0:00:00"]

1. e4 {[%clk 0:03:00]}  c5 {[%clk 0:02:58]} 2. Nf3 {[%clk 0:03:00]}  d6 {[%clk 0:02:59]} 3. Bb5+ {[%clk 0:02:59]}  Nd7 {[%clk 0:02:58]} 4. O-O {[%clk 0:02:58]}  Nf6 {[%clk 0:02:58]} 5. Re1 {[%clk 0:02:58]}  a6 {[%clk 0:02:57]} 6. Bf1 {[%clk 0:02:56]}  e5 {[%clk 0:02:56]} 7. c3 {[%clk 0:02:56]}  Be7 {[%clk 0:02:57]} 8. d4 {[%clk 0:02:56]}  O-O {[%clk 0:02:57]} 9. dxe5 {[%clk 0:02:55]}  dxe5 {[%clk 0:02:57]} 10. c4 {[%clk 0:02:55]}  b6 {[%clk 0:02:12]} 11. Nc3 {[%clk 0:02:54]}  Bb7 {[%clk 0:02:12]} 12. Bg5 {[%clk 0:02:25]}  Re8 {[%clk 0:02:00]} 13. Qd2 {[%clk 0:02:19]}  h6 {[%clk 0:01:57]} 14. Bh4 {[%clk 0:02:07]}  Qc7 {[%clk 0:01:13]} 15. Rad1 {[%clk 0:02:05]}  Rad8 {[%clk 0:01:12]} 16. Qc1 {[%clk 0:01:54]}  Nf8 {[%clk 0:01:04]} 17. Nd5 {[%clk 0:01:52]}  Nxd5 {[%clk 0:01:03]} 18. exd5 {[%clk 0:01:42]}  f6 {[%clk 0:00:28]} 19. Bd3 {[%clk 0:01:38]}  g5 {[%clk 0:00:17]} 20. Bg3 {[%clk 0:01:37]}  Kg7 {[%clk 0:00:17]} 21. h4 {[%clk 0:01:35]}  Bd6 {[%clk 0:00:14]} 22. hxg5 {[%clk 0:01:28]}  hxg5 {[%clk 0:00:14]} 23. Nxg5 {[%clk 0:01:25]}  fxg5 {[%clk 0:00:09]} 24. Qxg5+ {[%clk 0:01:26]}  Kh8 {[%clk 0:00:07]} 25. Re4 {[%clk 0:01:19]}  Re7 {[%clk 0:00:01]} 26. Rh4+ {[%clk 0:01:18]}  Nh7 {[%clk 0:00:00]} 27. Qf6+ {[%clk 0:00:58]} 1-0


[Site "https://www.chess.com"]

[Event "Titled Tuesday Blitz May 16 Early 2023"]
[White "Fajdetic, Hrvoje"]
[Black "Arat, Ufuk Sezen"]
[WhiteFideId "14501945"]
[BlackFideId "6309089"]
[WhiteElo "2185"]
[BlackElo "2289"]
[Result "1-0"]
[Round "05"]
[TimeControl "180+2"]
[Date "2023.05.16"]
[WhiteClock "0:00:05"]
[BlackClock "0:00:00"]

1. d4 {[%clk 0:02:59]}  d5 {[%clk 0:02:55]} 2. Bf4 {[%clk 0:02:59]}  Nf6 {[%clk 0:02:56]} 3. e3 {[%clk 0:03:00]}  c5 {[%clk 0:02:56]} 4. Nc3 {[%clk 0:02:59]}  Nc6 {[%clk 0:02:56]} 5. Nb5 {[%clk 0:02:58]}  e5 {[%clk 0:02:37]} 6. dxe5 {[%clk 0:02:58]}  a6 {[%clk 0:02:35]} 7. Nc3 {[%clk 0:02:56]}  d4 {[%clk 0:02:33]} 8. exf6 {[%clk 0:02:55]}  dxc3 {[%clk 0:02:33]} 9. Qxd8+ {[%clk 0:02:56]}  Nxd8 {[%clk 0:02:33]} 10. b3 {[%clk 0:02:56]}  gxf6 {[%clk 0:02:26]} 11. Ne2 {[%clk 0:02:55]}  Ne6 {[%clk 0:02:23]} 12. Bg3 {[%clk 0:02:50]}  Bg7 {[%clk 0:02:17]} 13. O-O-O {[%clk 0:02:46]}  f5 {[%clk 0:02:16]} 14. Rd5 {[%clk 0:02:24]}  b6 {[%clk 0:02:10]} 15. Be5 {[%clk 0:01:56]}  Bb7 {[%clk 0:01:54]} 16. Bxg7 {[%clk 0:01:54]}  Nxg7 {[%clk 0:01:52]} 17. Rd1 {[%clk 0:01:29]}  O-O {[%clk 0:01:46]} 18. Nxc3 {[%clk 0:01:29]}  Rad8 {[%clk 0:01:40]} 19. f3 {[%clk 0:01:14]}  Rde8 {[%clk 0:01:28]} 20. Re1 {[%clk 0:01:09]}  f4 {[%clk 0:01:17]} 21. e4 {[%clk 0:01:09]}  Ne6 {[%clk 0:01:14]} 22. Bc4 {[%clk 0:00:57]}  Nd4 {[%clk 0:01:00]} 23. Bd5 {[%clk 0:00:56]}  Bc8 {[%clk 0:00:56]} 24. Ne2 {[%clk 0:00:53]}  Nxe2+ {[%clk 0:00:54]} 25. Rxe2 {[%clk 0:00:54]}  Kg7 {[%clk 0:00:55]} 26. Rhe1 {[%clk 0:00:37]}  Be6 {[%clk 0:00:49]} 27. c4 {[%clk 0:00:33]}  Kf6 {[%clk 0:00:46]} 28. e5+ {[%clk 0:00:29]}  Ke7 {[%clk 0:00:47]} 29. Be4 {[%clk 0:00:25]}  Rg8 {[%clk 0:00:42]} 30. h3 {[%clk 0:00:18]}  Rg3 {[%clk 0:00:41]} 31. Bxh7 {[%clk 0:00:15]}  Rh8 {[%clk 0:00:36]} 32. Be4 {[%clk 0:00:14]}  Rhg8 {[%clk 0:00:36]} 33. Rd1 {[%clk 0:00:13]}  Rxg2 {[%clk 0:00:35]} 34. Rxg2 {[%clk 0:00:13]}  Rxg2 {[%clk 0:00:34]} 35. Rd2 {[%clk 0:00:13]}  Rg1+ {[%clk 0:00:29]} 36. Kb2 {[%clk 0:00:12]}  Bxh3 {[%clk 0:00:23]} 37. Rd6 {[%clk 0:00:12]}  b5 {[%clk 0:00:23]} 38. Rxa6 {[%clk 0:00:09]}  b4 {[%clk 0:00:23]} 39. Bd5 {[%clk 0:00:09]}  Rg2+ {[%clk 0:00:17]} 40. Kc1 {[%clk 0:00:09]}  Be6 {[%clk 0:00:16]} 41. Ra7+ {[%clk 0:00:08]}  Kf8 {[%clk 0:00:13]} 42. Bxe6 {[%clk 0:00:08]}  fxe6 {[%clk 0:00:14]} 43. Ra5 {[%clk 0:00:08]}  Rf2 {[%clk 0:00:13]} 44. Rxc5 {[%clk 0:00:08]}  Rxf3 {[%clk 0:00:14]} 45. Rb5 {[%clk 0:00:08]}  Rf2 {[%clk 0:00:11]} 46. Rxb4 {[%clk 0:00:08]}  Kg7 {[%clk 0:00:11]} 47. Rb6 {[%clk 0:00:07]}  Kg6 {[%clk 0:00:11]} 48. Rxe6+ {[%clk 0:00:06]}  Kf5 {[%clk 0:00:12]} 49. Re8 {[%clk 0:00:06]}  f3 {[%clk 0:00:11]} 50. Kb1 {[%clk 0:00:06]}  Rf1+ {[%clk 0:00:11]} 51. Kb2 {[%clk 0:00:06]}  f2 {[%clk 0:00:11]} 52. Rf8+ {[%clk 0:00:06]}  Kxe5 {[%clk 0:00:10]} 53. a4 {[%clk 0:00:06]}  Kd4 {[%clk 0:00:09]} 54. a5 {[%clk 0:00:06]}  Kc5 {[%clk 0:00:08]} 55. a6 {[%clk 0:00:04]}  Kb6 {[%clk 0:00:08]} 56. Rf6+ {[%clk 0:00:05]}  Ka7 {[%clk 0:00:09]} 57. b4 {[%clk 0:00:05]}  Kb8 {[%clk 0:00:04]} 58. b5 {[%clk 0:00:05]}  Ka7 {[%clk 0:00:04]} 59. c5 {[%clk 0:00:05]}  Kb8 {[%clk 0:00:04]} 60. Rf7 {[%clk 0:00:06]}  Ka8 {[%clk 0:00:01]} 61. b6 {[%clk 0:00:06]}  Re1 {[%clk 0:00:00]} 62. Rf8+ {[%clk 0:00:05]} 1-0


[Site "https://www.chess.com"]

[Event "Titled Tuesday Blitz May 16 Early 2023"]
[White "Ezat, Mohamed"]
[Black "Korpics, Zsolt"]
[WhiteFideId "10600906"]
[BlackFideId "705241"]
[WhiteElo "2386"]
[BlackElo "2325"]
[Result "0-1"]
[Round "05"]
[TimeControl "180+2"]
[Date "2023.05.16"]
[WhiteClock "0:00:06"]
[BlackClock "0:00:09"]

1. d4 {[%clk 0:03:00]}  Nf6 {[%clk 0:02:59]} 2. c4 {[%clk 0:03:00]}  e6 {[%clk 0:03:00]} 3. Nc3 {[%clk 0:03:00]}  Bb4 {[%clk 0:03:00]} 4. e3 {[%clk 0:02:59]}  O-O {[%clk 0:03:00]} 5. a3 {[%clk 0:02:56]}  Bxc3+ {[%clk 0:02:59]} 6. bxc3 {[%clk 0:02:57]}  d5 {[%clk 0:02:58]} 7. cxd5 {[%clk 0:02:56]}  exd5 {[%clk 0:02:55]} 8. Bd3 {[%clk 0:02:56]}  c5 {[%clk 0:02:43]} 9. f3 {[%clk 0:02:55]}  Nc6 {[%clk 0:02:43]} 10. Ne2 {[%clk 0:02:55]}  c4 {[%clk 0:02:29]} 11. Bb1 {[%clk 0:02:50]}  b5 {[%clk 0:02:29]} 12. O-O {[%clk 0:02:49]}  a5 {[%clk 0:02:29]} 13. Ng3 {[%clk 0:02:49]}  Rb8 {[%clk 0:02:23]} 14. e4 {[%clk 0:02:48]}  b4 {[%clk 0:02:19]} 15. axb4 {[%clk 0:02:47]}  axb4 {[%clk 0:02:19]} 16. e5 {[%clk 0:02:48]}  Ne8 {[%clk 0:02:15]} 17. f4 {[%clk 0:02:44]}  bxc3 {[%clk 0:02:09]} 18. Qc2 {[%clk 0:02:31]}  f5 {[%clk 0:02:05]} 19. Qxc3 {[%clk 0:02:25]}  Nc7 {[%clk 0:02:00]} 20. Be3 {[%clk 0:02:16]}  Nb5 {[%clk 0:01:56]} 21. Qd2 {[%clk 0:02:16]}  Be6 {[%clk 0:01:37]} 22. Bc2 {[%clk 0:02:12]}  c3 {[%clk 0:01:15]} 23. Qf2 {[%clk 0:02:11]}  Nb4 {[%clk 0:01:10]} 24. Rfb1 {[%clk 0:01:48]}  Qe7 {[%clk 0:01:03]} 25. Rb3 {[%clk 0:01:26]}  Nc6 {[%clk 0:00:51]} 26. Rab1 {[%clk 0:01:19]}  Na3 {[%clk 0:00:51]} 27. Rxb8 {[%clk 0:01:17]}  Nxb8 {[%clk 0:00:38]} 28. Rb3 {[%clk 0:01:08]}  g6 {[%clk 0:00:14]} 29. Rxc3 {[%clk 0:01:04]}  Na6 {[%clk 0:00:12]} 30. Bd3 {[%clk 0:01:00]}  Nc7 {[%clk 0:00:09]} 31. Qb2 {[%clk 0:00:56]}  Nc4 {[%clk 0:00:09]} 32. Bxc4 {[%clk 0:00:50]}  dxc4 {[%clk 0:00:09]} 33. Qb7 {[%clk 0:00:45]}  Nd5 {[%clk 0:00:09]} 34. Qxe7 {[%clk 0:00:45]}  Nxe7 {[%clk 0:00:10]} 35. Ra3 {[%clk 0:00:34]}  Nd5 {[%clk 0:00:08]} 36. Ne2 {[%clk 0:00:27]}  Rc8 {[%clk 0:00:07]} 37. Bd2 {[%clk 0:00:24]}  Rb8 {[%clk 0:00:08]} 38. Nc3 {[%clk 0:00:23]}  Nb4 {[%clk 0:00:07]} 39. Ra7 {[%clk 0:00:17]}  Nd3 {[%clk 0:00:07]} 40. d5 {[%clk 0:00:15]}  Bxd5 {[%clk 0:00:07]} 41. h4 {[%clk 0:00:09]}  Bf7 {[%clk 0:00:07]} 42. h5 {[%clk 0:00:07]}  gxh5 {[%clk 0:00:06]} 43. Re7 {[%clk 0:00:03]}  Rb2 {[%clk 0:00:06]} 44. e6 {[%clk 0:00:04]}  Bxe6 {[%clk 0:00:04]} 45. Bc1 {[%clk 0:00:04]}  Nxc1 {[%clk 0:00:03]} 46. Rxe6 {[%clk 0:00:04]}  Rc2 {[%clk 0:00:04]} 47. Nd5 {[%clk 0:00:05]}  Rd2 {[%clk 0:00:04]} 48. Re7 {[%clk 0:00:05]}  Rxd5 {[%clk 0:00:03]} 49. Rc7 {[%clk 0:00:06]}  Rd1+ {[%clk 0:00:02]} 50. Kh2 {[%clk 0:00:06]}  Rd4 {[%clk 0:00:03]} 51. Rc8+ {[%clk 0:00:06]}  Kg7 {[%clk 0:00:03]} 52. Rc5 {[%clk 0:00:07]}  Kf6 {[%clk 0:00:03]} 53. Rc6+ {[%clk 0:00:06]}  Ke7 {[%clk 0:00:04]} 54. Kh3 {[%clk 0:00:07]}  Kd7 {[%clk 0:00:04]} 55. Rc5 {[%clk 0:00:06]}  Nd3 {[%clk 0:00:04]} 56. Rxf5 {[%clk 0:00:05]}  Rxf4 {[%clk 0:00:05]} 57. Rf7+ {[%clk 0:00:06]}  Rxf7 {[%clk 0:00:05]} 58. Kh4 {[%clk 0:00:05]}  Re7 {[%clk 0:00:06]} 59. g4 {[%clk 0:00:05]}  Nc5 {[%clk 0:00:07]} 60. Kxh5 {[%clk 0:00:04]}  Ne6 {[%clk 0:00:08]} 61. g5 {[%clk 0:00:05]}  c3 {[%clk 0:00:09]} 62. Kh6 {[%clk 0:00:05]}  Rg7 {[%clk 0:00:08]} 63. g6 {[%clk 0:00:04]}  Rxg6+ {[%clk 0:00:08]} 64. Kxh7 {[%clk 0:00:05]}  Rg1 {[%clk 0:00:08]} 65. Kh8 {[%clk 0:00:04]}  c2 {[%clk 0:00:09]} 66. Kh7 {[%clk 0:00:05]}  c1=Q {[%clk 0:00:09]} 67. Kh8 {[%clk 0:00:06]}  Qh6# {[%clk 0:00:09]} 0-1


[Site "https://www.chess.com"]

[Event "Titled Tuesday Blitz May 16 Early 2023"]
[White "Mike24147"]
[Black "Kuznetsov, Mikhail"]
[BlackFideId "4117190"]
[WhiteElo "2326"]
[BlackElo "1981"]
[Result "1-0"]
[Round "05"]
[TimeControl "180+2"]
[Date "2023.05.16"]
[WhiteClock "0:01:08"]
[BlackClock "0:00:00"]

1. c4 {[%clk 0:02:59]}  Nf6 {[%clk 0:02:58]} 2. g3 {[%clk 0:02:59]}  g6 {[%clk 0:02:58]} 3. Bg2 {[%clk 0:02:59]}  d5 {[%clk 0:02:58]} 4. cxd5 {[%clk 0:02:59]}  Nxd5 {[%clk 0:02:58]} 5. Qb3 {[%clk 0:02:59]}  Nb6 {[%clk 0:02:53]} 6. Qc3 {[%clk 0:02:56]}  Rg8 {[%clk 0:02:51]} 7. Nf3 {[%clk 0:02:53]}  Bg7 {[%clk 0:02:50]} 8. Qc2 {[%clk 0:02:53]}  Nc6 {[%clk 0:02:48]} 9. a3 {[%clk 0:02:52]}  Bf5 {[%clk 0:02:45]} 10. d3 {[%clk 0:02:50]}  Bg4 {[%clk 0:02:39]} 11. Be3 {[%clk 0:02:42]}  Qd7 {[%clk 0:02:26]} 12. Nc3 {[%clk 0:02:39]}  Bh3 {[%clk 0:02:20]} 13. O-O {[%clk 0:02:30]}  Bxg2 {[%clk 0:02:05]} 14. Kxg2 {[%clk 0:02:31]}  Nd5 {[%clk 0:02:04]} 15. Nxd5 {[%clk 0:02:26]}  Qxd5 {[%clk 0:02:05]} 16. Rac1 {[%clk 0:02:25]}  Bf6 {[%clk 0:01:43]} 17. b4 {[%clk 0:02:19]}  Kf8 {[%clk 0:01:41]} 18. Qc4 {[%clk 0:02:09]}  Qxc4 {[%clk 0:01:25]} 19. Rxc4 {[%clk 0:02:09]}  a6 {[%clk 0:01:22]} 20. a4 {[%clk 0:02:01]}  Rc8 {[%clk 0:00:44]} 21. Rfc1 {[%clk 0:01:59]}  Kg7 {[%clk 0:00:19]} 22. b5 {[%clk 0:01:59]}  axb5 {[%clk 0:00:20]} 23. axb5 {[%clk 0:01:59]}  Na5 {[%clk 0:00:17]} 24. Rxc7 {[%clk 0:01:59]}  Ra8 {[%clk 0:00:07]} 25. Bb6 {[%clk 0:01:59]}  Nb3 {[%clk 0:00:04]} 26. R1c4 {[%clk 0:01:53]}  Rgb8 {[%clk 0:00:02]} 27. Rb4 {[%clk 0:01:30]}  Na5 {[%clk 0:00:02]} 28. Ra4 {[%clk 0:01:28]}  Nb3 {[%clk 0:00:02]} 29. Rxa8 {[%clk 0:01:28]}  Rxa8 {[%clk 0:00:02]} 30. Rxb7 {[%clk 0:01:28]}  Ra2 {[%clk 0:00:03]} 31. Bd8 {[%clk 0:01:19]}  Rxe2 {[%clk 0:00:01]} 32. Kf1 {[%clk 0:01:13]}  Re6 {[%clk 0:00:00]} 33. Rb6 {[%clk 0:01:08]} 1-0


[Site "https://www.chess.com"]